Cogmind - Beta 15 @@@ ROGUE MODE // 2025.09.25 @ 22:39:10 Player: Dolina Result: Self-destructed Performance ------------- Evolutions (2) 1000 Regions Visited (4) 800 Robots Destroyed (46) 230 Value Destroyed (1221) 1221 Prototype IDs (2) 40 Alien Tech Used (0) 0 Bonus (33) 33 TOTAL SCORE: 3324 Bonus ------- Follower Combat Kills 33 Cogmind --------- Core Integrity 145/550 Matter 180/300 Energy 100/100 System Corruption 0% Temperature Cool (94) Movement Core (50) Location -8/Materials Parts ------- > --- POWER (2) -------- (None) > --- PROPULSION (3) --- (None) > --- UTILITY (2) ------ (None) > --- WEAPON (4) ------- (None) > --- INVENTORY (5) ---- Heat Sink Medium Storage Unit Medium Matter Pod (100) Beam Rifle Peak State ------------ > --- POWER ------------ Ion Engine Reinforced Ion Engine > --- PROPULSION ------- Aluminum Leg Aluminum Leg Aluminum Leg > --- UTILITY ---------- Medium Matter Pod Improved Light Armor Plating > --- WEAPON ----------- Small Laser Pulse Rifle Improved Assault Rifle High-powered Shotgun > --- INVENTORY -------- Heat Sink Medium Storage Unit Medium Matter Pod Mini Grenade Launcher [Rating: 20] Favorites ----------- Power Ion Engine Engine Ion Engine Propulsion Aluminum Leg Leg Aluminum Leg Utility Medium Storage Unit Storage Medium Storage Unit Processor Targeting Computer Protection Improved Light Armor Plating Weapon Medium Laser Energy Gun Medium Laser Ballistic Gun Assault Rifle Launcher Mini Grenade Launcher Special Weapon Mining Laser Build | -11 -10 -9 -9 -8 ------- Run | Yrd Mat Mat Min Mat Slots Evolved 4 | . . 2 . 2 Power 1 | . . 1 . . Propulsion 1 | . . 1 . . Utility . | . . . . . Weapon 2 | . . . . 2 Parts Attached 32 | 6 5 8 8 5 Power 8 | 1 . 4 2 1 Engine 8 | 1 . 4 2 1 Core . | . . . . . Reactor . | . . . . . Propulsion 9 | 2 2 1 3 1 Treads . | . . . . . Leg 9 | 2 2 1 3 1 Wheel . | . . . . . Hover . | . . . . . Flight . | . . . . . Utility 5 | 1 2 1 1 . Device . | . . . . . Storage 3 | 1 1 1 . . Processor 1 | . 1 . . . Hackware . | . . . . . Protection 1 | . . . 1 . Artifact . | . . . . . Weapon 10 | 2 1 2 2 3 Energy Gun 3 | 1 . . 1 1 Energy Cannon . | . . . . . Ballistic Gun 5 | 1 1 2 . 1 Ballistic Cannon . | . . . . . Launcher 1 | . . . . 1 Special Weapon 1 | . . . 1 . Impact Weapon . | . . . . . Slashing Weapon . | . . . . . Piercing Weapon . | . . . . . Special Melee Weapon . | . . . . . Unidentified Prototypes 2 | . . 2 . . Parts Lost 23 | . 2 2 7 12 Power 4 | . . 1 2 1 Propulsion 8 | . 1 . 3 4 Utility 3 | . . 1 . 2 Weapon 8 | . 1 . 2 5 Highest Loss Streak 12 | . 2 1 6 12 To Critical Strikes . | . . . . . Average Backups 5 | 2 5 5 6 4 Power 1 | . 1 1 1 . Propulsion . | . . . . . Utility 1 | . 1 2 3 3 Weapon 1 | . 1 1 1 . Tool/Special . | . . . . . Unused Backups 1 | . . . . 1 Power . | . . . . . Propulsion . | . . . . . Utility 1 | . . . . 1 Weapon . | . . . . . Tool/Special . | . . . . . Average Slot Usage (%) 92 | . 99 85 90 83 Engine 15 | . 14 15 18 15 Leg 28 | . 27 31 28 23 Storage 16 | . 21 11 14 8 Processor 3 | . 6 5 . . Protection 2 | . . . 7 6 Energy Gun 9 | . 14 4 2 14 Ballistic Gun 15 | . 13 17 17 13 Peak Build Rating 20 | 6 7 18 18 20 Average Rating 10 | 3 6 11 14 16 On Entrance 8 | . 6 7 18 13 Naked Turns 1 | . . . . 1 Heaviest Build 34 | 14 24 34 34 30 Greatest Support 33 | 20 20 33 33 30 Greatest Overweight (x) 7 | 2 1 1 7 4 Average Overweight (x) . | . . . . . Largest Inventory Capacity 10 | 8 10 10 10 5 Average Capacity 8 | 6 9 10 6 5 Most Carried 10 | 6 8 9 10 5 Average Carried 5 | 2 5 5 6 4 Final Capacity 10 | 8 10 10 5 5 Final Carried 9 | 2 5 9 5 4 Class Distribution -------------------- 68% | Mutant 19% | Scavenger-Mutant 10% | Scavenger-Tank Dominant Class ---------------- Mutant | -10/Materials Mutant | -9/Materials Scavenger-Mutant | -9/Mines Scavenger-Tank | -8/Materials Resources | -11 -10 -9 -9 -8 ----------- Run | Yrd Mat Mat Min Mat Matter Collected 1088 | 208 214 144 423 99 Remotely . | . . . . . Salvage Created 1850 | . 476 599 340 435 Parts 99 | . 31 34 10 24 Haulers Intercepted 3 | . . 2 . 1 Recyclers Shooed 4 | . . 2 1 1 Parts Field Recycled . | . . . . . Retrieved Matter . | . . . . . Parts Self-Destructed . | . . . . . Prevented . | . . . . . Kills | -11 -10 -9 -9 -8 ------- Run | Yrd Mat Mat Min Mat Combat Hostiles Destroyed 36 | . 13 6 9 8 Guns 34 | . 13 6 9 6 AOE 2 | . . . . 2 Classes Destroyed 13 | . 4 4 2 3 Worker 1 | . . . . 1 Builder 3 | . 1 . . 2 Hauler 3 | . . 2 . 1 Recycler 4 | . . 3 1 . Mechanic 1 | . . . . 1 Watcher 3 | . 2 1 . . Swarmer 6 | . 6 . . . Grunt 19 | . 7 4 2 6 Brawler 1 | . . 1 . . Sentry 2 | . . 1 . 1 Demolisher 2 | . . . 2 . Hunter 1 | . . . . 1 Assembled 5 | . . . 5 . Best Kill Streak 8 | . 4 8 3 7 Combat Bots Only 5 | . 3 4 3 5 Max Kills in Single Turn 3 | . 2 1 1 3 Gunslinging . | . . . . . Exploded 1 | . . . . 1 Melee . | . . . . . Uniques/NPCs Destroyed . | . . . . . Combat | -11 -10 -9 -9 -8 -------- Run | Yrd Mat Mat Min Mat Hostile Shots Fired 229 | . 63 20 51 95 Missed 56 | . 20 6 9 21 Hits 173 | . 43 14 42 74 Melee 4 | . . . 3 1 Projectile 169 | . 43 14 39 73 AOE 19 | . . . 19 . Critical Strikes 5 | . . . 1 4 Part Disruptions 2 | . . . 2 . Damage Taken 3096 | . 520 162 1074 1340 Core 759 | . 139 47 168 405 Absorbed by Shields . | . . . . . Regen/Repaired (Parts) 189 | . 62 . . 127 Core Remaining (%) 63 | 100 44 . 46 . Volleys Fired 144 | . 42 39 40 23 Largest 4 | . 2 2 2 4 Hottest 151 | . 70 70 63 151 Shots Fired 293 | . 84 78 68 63 Gun 288 | . 84 78 68 58 Cannon . | . . . . . Launcher 5 | . . . . 5 Special . | . . . . . Kinetic 189 | . 42 58 60 29 Thermal 99 | . 42 20 8 29 Explosive 5 | . . . . 5 Electromagnetic . | . . . . . Robot Hit Streak 16 | . 6 14 16 8 Robot Miss Streak 5 | . 5 3 4 5 Penetration Max . | . . . . . Secondary Targets 2 | . . . . 2 Max Gunslinging Chain 1 | . . . . 1 Shots Hit Robots 195 | . 53 51 51 40 Core Hits 96 | . 24 23 20 29 Critical Kills 1 | . . . . 1 Critical Parts Destroyed . | . . . . . Critical Strikes 5 | . 1 1 . 3 Burn 4 | . 1 1 . 2 Destroy 1 | . . . . 1 Melee Attacks . | . . . . . Impact . | . . . . . Slashing . | . . . . . Piercing . | . . . . . Sneak Attacks . | . . . . . Combat Hostiles . | . . . . . Follow-up Attacks . | . . . . . Damage Inflicted 2944 | . 708 558 641 1037 Guns 2417 | . 702 558 641 516 Cannons . | . . . . . Explosions 520 | . . . . 520 Melee . | . . . . . Ramming 7 | . 6 . . 1 Kinetic 1640 | . 376 382 598 284 Thermal 777 | . 326 176 43 232 Explosive 520 | . . . . 520 Electromagnetic . | . . . . . Impact . | . . . . . Slashing . | . . . . . Piercing . | . . . . . Highest Corruption . | . . . . . Average Corruption . | . . . . . Corruption Purged . | . . . . . Corruption Blocked . | . . . . . Overload Shots . | . . . . . Overflow Damage . | . . . . . Projectiles . | . . . . . Explosions . | . . . . . Melee . | . . . . . Knockbacks . | . . . . . Impact . | . . . . . Kinetic . | . . . . . Secondary . | . . . . . Self-Inflicted Damage 68 | . . . . 68 Shots 2 | . . . . 2 Rammed . | . . . . . Targets Rammed 2 | . 1 . . 1 Kicked 2 | . 1 . . 1 Crushed . | . . . . . Highest Temperature 832 | . 183 44 196 832 Average Temperature 143 | . 47 12 77 391 Received Heat Transfer 1005 | . 159 81 234 531 Effects 35 | . . . . 35 Shutdowns 13 | . . . . 13 Energy Bleed 5 | . . . . 5 Interference 6 | . . . . 6 Matter Decay 3 | . . . . 3 Short Circuit 2 | . . . . 2 Damage (minor) 1 | . . . . 1 Damage (major) 3 | . . . . 3 Damage (core) 2 | . . . . 2 Siege Activations . | . . . . . Martial Activations . | . . . . . Shielding Activations . | . . . . . Robots Disrupted . | . . . . . Combat Hostiles . | . . . . . Robots Corrupted . | . . . . . Combat Hostiles . | . . . . . Parts Fried . | . . . . . Impact Corruptions . | . . . . . Robots Melted . | . . . . . Combat Hostiles . | . . . . . Parts Melted 6 | . 2 1 . 3 Heat Transferred 2397 | . 1036 592 100 669 Parts Sabotaged . | . . . . . Parts Stolen . | . . . . . Parts Stripped . | . . . . . Power Chain Reactions . | . . . . . Alert | -11 -10 -9 -9 -8 ------- Run | Yrd Mat Mat Min Mat Maximum Alert Level . | . . . . . Low Security (%) 100 | 100 100 100 100 100 Level 1 . | . . . . . Level 2 . | . . . . . Level 3 . | . . . . . Level 4 . | . . . . . Level 5 . | . . . . . High Security . | . . . . . Max Security . | . . . . . Peak Influence 167 | . 167 111 40 104 Initial 13 | . . 11 13 . Average 48 | . 71 55 9 25 Influence Increases 1047 | . 402 210 105 330 Destroy 0b10 Robot/C 640 | . 260 120 80 180 Destroy 0b10 Robot/NC 75 | . 15 30 5 25 Destroy Leader 142 | . 54 26 20 42 Allied During Kill 5 | . . . . 5 Successful Hack 33 | . 13 4 . 16 Disable Machine 45 | . . 30 . 15 Destroy Structure 32 | . . . . 32 Lose Combat Pursuer 75 | . 60 . . 15 Influence Decreases 963 | . 375 203 139 246 Entered New Map 37 | . . 16 21 . Time Decay 716 | . 355 167 108 86 Lost Part 170 | . 20 20 10 120 Lost Ally 40 | . . . . 40 Squads Dispatched 8 | . 2 2 1 3 Investigation 4 | . 1 2 . 1 Extermination . | . . . . . Reinforcement 2 | . 1 . 1 . Assault . | . . . . . Garrison 2 | . . . . 2 Intercept . | . . . . . Searches Triggered . | . . . . . Construction Impeded 1 | . . . 1 . Haulers Reinforced . | . . . . . Active Scanning Responses . | . . . . . Cargo Convoy Interrupts . | . . . . . Stealth | -11 -10 -9 -9 -8 --------- Run | Yrd Mat Mat Min Mat Distress Signals 4 | . 1 1 . 2 Communications Jammed . | . . . . . Distress Signals . | . . . . . Times Spotted 56 | . 22 8 9 17 Peak Tracking Total 7 | . 6 3 3 7 Tactical Retreats 3 | . 2 . . 1 Traps | -11 -10 -9 -9 -8 ------- Run | Yrd Mat Mat Min Mat Traps Triggered 3 | . 3 . . . Indirectly . | . . . . . Trap Hack Attempts . | . . . . . Triggered . | . . . . . Disarmed 1 | . 1 . . . Reprogrammed . | . . . . . Reused . | . . . . . Traps Extracted . | . . . . . Installed . | . . . . . Triggered . | . . . . . Machines | -11 -10 -9 -9 -8 ---------- Run | Yrd Mat Mat Min Mat Machines Disabled 3 | . . 2 . 1 Max in Single Turn 1 | . . 1 . 1 Machines Repaired . | . . . . . Machines Dismantled . | . . . . . Machines Sabotaged . | . . . . . Overloaded Fab Kills . | . . . . . Hacking | -11 -10 -9 -9 -8 --------- Run | Yrd Mat Mat Min Mat Machines Accessed 10 | . 5 3 . 2 Terminals 8 | . 4 3 . 1 Fabricators . | . . . . . Repair Stations 2 | . 1 . . 1 Recycling Units . | . . . . . Scanalyzers . | . . . . . Garrison Access . | . . . . . Total Hacks 33 | . 16 9 . 8 Successful 18 | . 8 5 . 5 Failed 15 | . 8 4 . 3 Catastrophic 6 | . 4 2 . . Database Lockouts . | . . . . . Manual . | . . . . . Terminals 28 | . 13 9 . 6 Fabricators . | . . . . . Repair Stations 5 | . 3 . . 2 Recycling Units . | . . . . . Scanalyzers . | . . . . . Garrison Access . | . . . . . Terminal Hacks 13 | . 5 5 . 3 Record 9 | . 2 5 . 2 Disarm Traps 1 | . 1 . . . Recall Investigation 1 | . 1 . . . Recall Reinforcements 1 | . 1 . . . Registered Prototypes 1 | . . . . 1 Fabricator Hacks . | . . . . . Repair Station Hacks 5 | . 3 . . 2 Scan Component 2 | . 1 . . 1 Repair 2 | . 1 . . 1 Refit 1 | . 1 . . . Recycling Unit Hacks . | . . . . . Scanalyzer . | . . . . . Garrison Access Hacks . | . . . . . Unauthorized Hacks . | . . . . . Terminals . | . . . . . Fabricators . | . . . . . Repair Stations . | . . . . . Recycling Units . | . . . . . Scanalyzers . | . . . . . Garrison Access . | . . . . . Data Cores Recovered . | . . . . . Used . | . . . . . Hacking Detections 9 | . 4 3 . 2 Full Trace Events 5 | . 2 2 . 1 Feedback Events . | . . . . . Feedback Blocked . | . . . . . Robot Schematics Acquired . | . . . . . Robots Built . | . . . . . Authchips . | . . . . . Time . | . . . . . Total Robot Build Rating . | . . . . . Part Schematics Acquired . | . . . . . Parts Built . | . . . . . Authchips . | . . . . . Time . | . . . . . Total Part Build Rating . | . . . . . Parts Repaired 2 | . 1 . . 1 Time 77 | . 26 . . 51 Parts Recycled . | . . . . . Recycled Matter . | . . . . . Retrieved Matter . | . . . . . Retrieved Components . | . . . . . Parts Scanalyzed . | . . . . . Part Schematics Acquired . | . . . . . Parts Damaged . | . . . . . Bothacking | -11 -10 -9 -9 -8 ------------ Run | Yrd Mat Mat Min Mat Used RIF Installer . | . . . . . Robots Hacked . | . . . . . Non-combat . | . . . . . Combat . | . . . . . Robot Hacks Applied . | . . . . . Relay Couplers Released . | . . . . . Fabnet Peak Effective % . | . . . . . Robots Rewired . | . . . . . Allies Hacked . | . . . . . Hacks Repelled . | . . . . . Allies | -11 -10 -9 -9 -8 -------- Run | Yrd Mat Mat Min Mat Total Allies 3 | . . . 3 . Largest Group 2 | . . . 2 2 Highest-Rated Group 45 | . . . 45 45 Highest-Rated Ally 31 | . . . 31 31 Total Orders . | . . . . . Ally Attacks 6 | . . . . 6 Total Damage 82 | . . . . 82 Kills 1 | . . . . 1 Allies Corrupted . | . . . . . Allies Melted . | . . . . . Intel | -11 -10 -9 -9 -8 ------- Run | Yrd Mat Mat Min Mat Active Infowar (turns) . | . . . . . Robot Analysis Total . | . . . . . Derelict Logs Recovered 1 | . . . 1 . Drone Launches . | . . . . . Drone Recoveries . | . . . . . Exploration | -11 -10 -9 -9 -8 ------------- Run | Yrd Mat Mat Min Mat Turns Passed 2115 | 56 941 424 404 290 Spaces Moved 1110 | 50 532 243 204 81 Core 33 | 26 . . 1 6 Treads . | . . . . . Legs 1077 | 24 532 243 203 75 Wheels . | . . . . . Hover . | . . . . . Flight . | . . . . . Fastest Speed 50 | 50 120 120 120 120 Average Speed 139 | 87 148 121 136 175 Slowest Speed 400 | 150 190 190 400 260 Overloaded Moves . | . . . . . Propulsion Burnouts . | . . . . . Robots Hopped . | . . . . . Potential Cave-ins . | . . . . . Cave-ins Triggered . | . . . . . Exploration Rate (%) 29 | 4 74 24 36 8 Regions Visited 4 Branch Regions 1 Pre-discovered Areas . | . . . . . Known Exits Taken . | . . . . . Unknown Exits Taken 4 | 1 1 1 1 . Scrap Searched . | . . . . . Spaces Dug . | . . . . . Terrain Destroyed 38 | . . . . 38 Melee . | . . . . . Projectile . | . . . . . AOE 38 | . . . . 38 Terrain Rammed . | . . . . . Walls Destroyed . | . . . . . Machines Disabled . | . . . . . Actions | -11 -10 -9 -9 -8 --------- Run | Yrd Mat Mat Min Mat Total 1414 | 61 601 305 266 181 Wait 90 | . 14 . 9 67 Move 1106 | 49 531 242 203 81 Hop . | . . . . . Pick Up 29 | 6 7 11 2 3 Fast Attach 6 | 2 . . 2 2 Attach 26 | 4 4 8 6 4 Detach 3 | . . 2 1 . Swap 3 | . 1 . 2 . Drop 5 | . 1 3 1 . Fire 144 | . 42 39 40 23 Melee . | . . . . . Ram . | . . . . . Kick 2 | . 1 . . 1 Crush . | . . . . . Escape Stasis . | . . . . . Rewire . | . . . . . Trap . | . . . . . Miscellaneous . | . . . . . Route ------- -11/Scrapyard -10/Materials (discovered 5 exits: *Mat x3 / [*Min] / [*Sub]) -9/Materials -9/Mines -8/Materials History --------- Turn | Location | Event 6 | -11/Scrapyard | Discovered new exit (range 14) 57 | -11/Scrapyard | Entered Materials 300 | -10/Materials | Build established: Mutant 552 | -10/Materials | Discovered new exit (range 4) 565 | -10/Materials | Discovered new exit (range 15) 783 | -10/Materials | Discovered new exit (range 3) 785 | -10/Materials | Discovered new exit (range 13) 857 | -10/Materials | Derelicts attacked the area 869 | -10/Materials | Repaired Aluminum Leg? 934 | -10/Materials | Core integrity fell below 50% 993 | -10/Materials | Discovered new exit (range 4) 998 | -10/Materials | Entered another Materials area 998 | -9/Materials | Evolved 2 slots: Power x1, Propulsion x1 1373 | -9/Materials | Discovered new exit (range 11) 1422 | -9/Materials | Entered Mines 1425 | -9/Mines | Received a Mining Laser from a helpful Derelict 1451 | -9/Mines | Learned Materials stockpile data 1452 | -9/Mines | Assembled infested the area 1481 | -9/Mines | A Derelict revealed a hidden shortcut to a safe place 1541 | -9/Mines | Lost 6 parts (1p3n2w) 1720 | -9/Mines | Core integrity fell below 50% 1794 | -9/Mines | Discovered new exit (range 12) 1818 | -9/Mines | Build established: Scavenger-Mutant 1826 | -9/Mines | Entered Materials 1826 | -8/Materials | Accompanied by 2 allies 1826 | -8/Materials | Evolved 2 slots: Weapon x2 1838 | -8/Materials | Led the pair of lost Derelicts to an unsafe place 1948 | -8/Materials | Repaired Imp. Assault Rifle 1985 | -8/Materials | Garrison activated, responded to threat 2093 | -8/Materials | Core integrity fell below 50% 2116 | -8/Materials | Self-destructed Last Messages --------------- Y-45 Defender destroyed. Terminal disabled. U-05 Engineer lays Concrete. U-05 Engineer builds a Wall. Med. Matter Pod destroyed. Acquired 48 matter. K-01 Serf collects debris. Y-45 Defender suffers critical hit (Burn). Y-45 Defender destroyed. The unstable cave ceiling collapses. K-01 Serf collects debris. U-05 Engineer lays Concrete. K-01 Serf collects debris. U-05 Engineer lays Concrete. Mni. Grenade Launcher destroyed. U-05 Engineer lays Concrete. K-01 Serf collects debris. Acquired Beam Rifle. U-05 Engineer builds a Wall. Rnf. Ion Engine severed. Map ----- +----------------------------------------------------+ | | | ?????????????????????????????????????????????????? | | ?????????????????????????????????????????????????? | | ?????????????????????????????????????????????????? | | ?????????????????????????????????????????????????? | | ?????????????????????????????????????????????????? | | ?????????????????????????????????????????????????? | | ?????????????????????????????????????????????????? | | ?????????????????????????????????????????????????? | | ?????????????????????????????????????????????????? | | ?????????????????????????????????????????????????? | | ?????????????????????????????????????????????????? | | ?????????????????????????????????????????????????? | | ?????????????????????????????????????????????????? | | ?????????????????????????????????????????????????? | | ?????????????????###################?????????????? | | ?????????????????# # # #?????????????? | | ?????????????????# """ # # """ #?????????????? | | ??####???????????# "R" # # """ #?????????????? | | ??#]]!!??????????# " " + + """ !#?????????????? | | ??#]]!![????##???# # # """ #?????????????? | | ??# ?### ??# | # # #?????????????? | | ????# ## ######### ########?????????????? | | ????# = # # #???????????????????? | | ????# *== k #???????????????????? | | ????# **= =!@ #???????????????????? | | ????# =!u[[% g g! l%! #???????????????????? | | ????# !%## [[ ## a ????????????? | | ????### ### = #??#### k#########????????????? | | ?????????## #?????? #g% #????????????????????? | | ??????????## =#?????? # #????????????????????? | | ???????????# [%#????? + +????????????????????? | | ???????????#! *^/?????/ # #????????????????????? | | ???????????# # ??? + #????????????????????? | | ???????????#!! # ???#### #????????????????????? | | ???????????#!! #?#?????##+##????????????????????? | | ???????????#![ #????????? ?????????????????????? | | ???????????######?????????""?????????????????????? | | ??????????????????????????""?????????????????????? | | ?????????????????????????????????????????????????? | | ?????????????????????????????????????????????????? | | ?????????????????????????????????????????????????? | | ?????????????????????????????????????????????????? | | ?????????????????????????????????????????????????? | | ?????????????????????????????????????????????????? | | ?????????????????????????????????????????????????? | | ?????????????????????????????????????????????????? | | ?????????????????????????????????????????????????? | | ?????????????????????????????????????????????????? | | ?????????????????????????????????????????????????? | +----------------------------------------------------+ Best States ------------- Heat Dissipation 31 Energy Generation 23 Energy Capacity 460 Matter Stores 400 Matter Capacity 400 Sight Range 16 Terrain Scan Density 10 Armor Coverage 150 Evasion (%) 55 Targeting Accuracy 5 Item Schematics ----------------- None Robot Schematics ------------------ None Fabricated ------------ Nothing Repaired ---------- Aluminum Leg | 31% | -10/Materials Imp. Assault Rifle | 9% | -8/Materials Alien Tech Used ----------------- None Achievements -------------- None Challenges ------------ None Game ------ Seed vfghue Manual? 1 Play Time 00:29:50 Cumulative 11.3 hours Start 2025.09.25 @ 22:04:07 End 2025.09.25 @ 22:39:10 Sessions 1 Manual Loads 0 Difficulty Rogue Special Mode None Game No. 18 Rogue 18 Adventurer 0 Explorer 0 Win Type - Total 0 Types 0/0/0/0/0/0/0/0/0/0 Lore% 1 Gallery% 11 Achievement% 8 Wizard Run 0 Options --------- Layout 1 ASCII 0 Keyboard 0 Movement Mouse Keybinds 0 Fullscreen 1 Font 32/SmallcapsGlow Map View 50x40 Zoom Use 0% Tactical HUD 0 Map Filters NONE Filters NONE Steam 1 RUN: 422678dd-4338-4c0b-8958-688cdfda56cb